bitfinex-derivatives/quotes_BNBF0:USTF0_20250715
["timestamp","ask_amount","ask_price","bid_price","bid_amount"]
[1752544332001,0.97519893,688.39,687.4,0.97107344]
[1752544332503,0.97519893,688.41,687.39,0.97107344]
[1752544332702,0.97519893,688.43,687.38,0.97107344]
[1752544333002,0.97519893,688.43,687.39,0.97107344]
[1752544333206,0.97519893,688.39,687.41,0.97107344]
[1752544333405,0.97519893,688.39,687.42,0.97107344]
[1752544334107,0.97519893,688.41,687.42,0.97107344]
[1752544334302,0.97519893,688.39,687.44,0.97107344]
[1752544334505,0.97519893,688.36,687.45,0.97107344]
[1752544335003,0.25283072,688.66,687.76,0.97107344]
[1752544335206,0.25283072,688.66,687.77,0.97107344]
[1752544335414,0.97519893,688.49,687.55,0.97107344]
[1752544335614,0.97519893,688.48,687.55,0.97107344]
[1752544335909,0.97519893,688.61,687.68,0.97107344]
[1752544336111,0.97519893,688.61,687.69,0.97107344]
[1752544336413,0.97519893,688.63,687.7,0.97107344]
[1752544336812,0.97519893,688.61,687.72,0.97107344]
[1752544337012,0.97519893,688.6,687.73,0.97107344]
[1752544337515,0.97519893,688.59,687.76,0.97107344]
[1752544338315,0.97519893,688.6,687.75,0.97107344]
[1752544339517,0.97519893,688.58,687.76,0.97107344]
[1752544339917,0.97519893,688.57,687.75,0.97107344]
[1752544340313,0.97519893,688.56,687.75,0.97107344]
[1752544341120,0.97519893,688.59,687.78,0.97107344]
[1752544341318,0.97519893,688.63,687.78,0.97107344]
[1752544342323,0.25283072,688.66,687.64,1.30869358]
[1752544342324,0.97519893,688.64,687.77,0.97107344]
[1752544342624,0.97519893,688.65,687.78,0.97107344]
[1752544342924,0.25283072,688.66,687.77,0.97107344]
[1752544343125,0.25283072,688.66,687.8,0.97107344]
[1752544343321,0.25283072,688.66,687.79,0.97107344]
[1752544344020,0.25283072,688.66,687.8,0.97107344]
[1752544345323,0.25283072,688.66,687.65,1.30869358]
[1752544345324,0.25283072,688.66,687.79,0.97107344]
[1752544347225,0.25283072,688.66,687.78,0.97107344]
[1752544347630,0.25283072,688.66,687.79,0.97107344]
[1752544348223,0.25283072,688.66,687.78,0.97107344]
[1752544349425,0.97519893,688.73,687.78,0.97107344]
[1752544351129,0.97519893,688.72,687.79,0.97107344]
[1752544352426,0.97519893,688.71,687.79,0.97107344]
[1752544352729,0.97519893,688.73,687.81,0.97107344]
[1752544352926,0.97519893,688.72,687.81,0.97107344]
[1752544353330,0.97519893,688.73,687.81,0.97107344]
[1752544353531,0.97519893,688.72,687.81,0.97107344]
[1752544355333,0.97519893,688.71,687.81,0.97107344]
[1752544356532,0.97519893,688.71,687.82,0.97107344]
[1752544357034,0.97519893,688.72,687.81,0.97107344]
[1752544357535,0.97519893,688.71,687.82,0.97107344]
[1752544358335,0.97292111,688.71,687.82,0.96705729]
[1752544359433,0.97292111,688.71,687.83,0.96705729]
[1752544359635,0.97292111,688.7,687.83,0.96705729]
[1752544360836,0.97292111,688.71,687.82,0.96705729]
[1752544361338,0.97292111,688.7,687.83,0.96705729]
[1752544362535,0.97292111,688.7,687.84,0.96705729]
[1752544362736,0.97292111,688.68,687.85,0.96705729]
[1752544364336,0.25274901,688.74,687.1,3.265046]
[1752544364337,0.97292111,688.69,687.84,0.96705729]
[1752544364537,0.97292111,688.69,687.85,0.96705729]
[1752544365436,0.97292111,688.68,687.85,0.96705729]
[1752544366336,0.97292111,688.69,687.84,0.96705729]
[1752544366535,0.97292111,688.68,687.85,0.96705729]
[1752544366936,0.97292111,688.7,687.84,0.96705729]
[1752544368440,0.97292111,688.7,687.83,0.96705729]
[1752544369341,0.97292111,688.71,687.83,0.96705729]
[1752544370439,0.97292111,688.7,687.84,0.96705729]
[1752544371939,0.25274901,688.74,687.84,0.96705729]
[1752544371940,0.97292111,688.69,687.84,0.96705729]
[1752544372743,0.97292111,688.69,687.57,1.96304037]
[1752544372744,0.97292111,688.67,687.82,0.96705729]
[1752544373242,0.97292111,688.66,687.82,0.96705729]
[1752544373842,0.97292111,688.67,687.82,0.96705729]
[1752544374444,0.97292111,688.66,687.82,0.96705729]
[1752544374745,0.97292111,688.66,687.68,1.30869358]
[1752544374746,0.97292111,688.72,687.79,0.96705729]
[1752544374942,0.97292111,688.73,687.78,0.96705729]
[1752544375347,0.97292111,688.68,687.74,0.96705729]
[1752544376650,0.97292111,688.69,687.75,0.96705729]
[1752544376943,0.97292111,688.67,687.84,0.96705729]
[1752544377947,0.97292111,688.68,687.83,0.96705729]
[1752544378248,0.97292111,688.69,687.83,0.96705729]
[1752544378850,0.97292111,688.69,687.84,0.96705729]
[1752544379346,0.97292111,688.73,687.81,0.96705729]
[1752544379552,0.97292111,688.74,687.81,0.96705729]
[1752544380050,0.97292111,688.76,687.8,0.96705729]
[1752544380548,0.97292111,688.79,687.83,0.96705729]
[1752544382747,0.25270679,688.97,687.46,1.96304037]
[1752544383047,0.97432662,688.78,687.83,0.9677751]
[1752544385251,0.97432662,688.77,687.83,0.9677751]
[1752544385453,0.97432662,688.96,688.0,0.9677751]
[1752544385652,0.25270679,688.97,688.03,0.9677751]
[1752544386653,0.97432662,688.81,687.84,0.9677751]
[1752544386853,0.97432662,688.84,687.86,0.9677751]
[1752544387149,0.97432662,688.83,687.87,0.9677751]
[1752544387650,0.97432662,688.79,687.89,0.9677751]
[1752544388252,0.97432662,688.78,687.9,0.9677751]
[1752544388750,0.97432662,688.85,687.96,0.9677751]
[1752544389052,0.97432662,688.91,688.03,0.9677751]
[1752544389248,0.97432662,688.92,688.03,0.9677751]
[1752544389452,0.97432662,688.98,688.08,0.9677751]
[1752544390048,0.97432662,688.96,688.09,0.9677751]
[1752544390254,0.97432662,688.95,688.1,0.9677751]
[1752544391253,0.97432662,688.94,688.11,0.9677751]
[1752544392349,0.97432662,688.93,688.12,0.9677751]
[1752544392955,0.97432662,688.9,688.14,0.9677751]
[1752544393155,0.97432662,688.91,688.13,0.9677751]
[1752544393353,0.97432662,688.92,688.13,0.9677751]
[1752544393752,0.97432662,688.89,688.15,0.9677751]
[1752544394056,0.97432662,688.89,688.14,0.9677751]
[1752544394251,0.97432662,688.89,688.0,1.2903668]
[1752544394252,0.97432662,688.88,688.15,0.9677751]
[1752544395057,0.97432662,688.88,688.16,0.9677751]
[1752544395358,0.97432662,688.84,688.18,0.9677751]
[1752544395558,0.97432662,688.85,688.18,0.9677751]
[1752544396057,0.97432662,688.85,688.05,1.2903668]
[1752544396058,0.97432662,688.85,688.17,0.9677751]
[1752544396753,0.97432662,688.86,688.17,0.9677751]
[1752544396960,0.97432662,688.85,688.17,0.9677751]
[1752544397158,0.97432662,688.85,688.16,0.9677751]
[1752544398158,0.97432662,688.85,688.15,0.9677751]
[1752544399058,0.97432662,688.86,688.16,0.9677751]
[1752544399258,0.25267468,689.06,688.15,0.9677751]
[1752544399259,0.97432662,688.87,688.15,0.9677751]
[1752544400156,0.97432662,688.86,688.15,0.9677751]
[1752544400357,0.97432662,688.86,688.14,0.9677751]
[1752544401160,0.97432662,688.87,688.14,0.9677751]
[1752544402357,0.97432662,688.98,688.07,0.9677751]
[1752544404460,0.97432662,688.99,688.06,0.9677751]
[1752544404661,0.97432662,688.98,688.06,0.9677751]
[1752544405163,0.97432662,688.96,688.03,0.9677751]
[1752544405365,0.97432662,688.92,687.99,0.9677751]
[1752544408866,0.97432662,688.94,687.98,0.9677751]
[1752544412170,0.97486262,688.94,687.98,0.96646334]
[1752544412370,0.97486262,688.9,688.01,0.96646334]
[1752544412570,0.97486262,688.87,688.03,0.96646334]
[1752544413971,0.97486262,688.88,688.03,0.96646334]
[1752544414268,0.97486262,688.89,688.05,0.96646334]
[1752544416769,0.97486262,688.88,688.05,0.96646334]
[1752544418670,0.97486262,688.83,688.08,0.96646334]
[1752544418969,0.97486262,688.82,688.07,0.96646334]
[1752544419272,0.25267468,689.06,688.07,0.96646334]
[1752544419273,0.97486262,688.81,688.07,0.96646334]
[1752544420069,0.97486262,688.82,688.07,0.96646334]
[1752544420267,0.97486262,688.81,688.07,0.96646334]
[1752544421373,0.97486262,688.8,688.08,0.96646334]
[1752544423373,0.97486262,688.78,688.09,0.96646334]
[1752544423877,0.97486262,688.8,688.08,0.96646334]
[1752544426173,0.97486262,688.8,688.09,0.96646334]
[1752544426378,0.97486262,688.79,688.09,0.96646334]
[1752544427380,0.97486262,688.8,688.09,0.96646334]
[1752544427979,0.97486262,688.79,688.09,0.96646334]
[1752544430175,0.97486262,688.79,688.1,0.96646334]
[1752544430876,0.97486262,688.79,688.09,0.96646334]
[1752544431278,0.97486262,688.79,688.1,0.96646334]
[1752544432082,0.97486262,688.79,688.09,0.96646334]
[1752544432378,0.97486262,688.79,688.1,0.96646334]
[1752544433278,0.97486262,688.78,688.1,0.96646334]
[1752544433781,0.25267468,689.06,688.11,0.96646334]
[1752544433782,0.97486262,688.77,688.11,0.96646334]
[1752544433982,0.97486262,688.78,688.13,0.96646334]
[1752544434379,0.97486262,688.77,688.14,0.96646334]
[1752544435085,0.97486262,688.78,688.13,0.96646334]
[1752544435285,0.97486262,688.77,688.14,0.96646334]
[1752544436184,0.97486262,688.76,688.15,0.96646334]
[1752544437285,0.97486262,688.74,688.16,0.96646334]
[1752544438088,0.97486262,688.74,688.17,0.96646334]
[1752544438289,0.97486262,688.73,688.17,0.96646334]
[1752544439189,0.97486262,688.73,688.18,0.96646334]
[1752544439486,0.97486262,688.72,688.18,0.96646334]
[1752544441091,0.97486262,688.73,688.17,0.96646334]
[1752544441292,0.97486262,688.73,688.18,0.96646334]
[1752544441788,0.97486262,688.73,687.34,0.25267468]
[1752544441789,0.97486262,688.74,688.17,0.96646334]
[1752544441988,0.97486262,688.71,688.14,0.96646334]
[1752544442287,0.25267468,689.06,688.1,0.96646334]
[1752544442288,0.97486262,688.76,688.1,0.96646334]
[1752544442492,0.97486262,688.74,688.07,0.96646334]
[1752544442687,0.97486262,688.74,687.74,1.9355502]
[1752544442688,0.97486262,688.71,688.06,0.96646334]
[1752544443189,0.97486262,688.65,688.01,0.96646334]
[1752544443388,0.97486262,688.65,688.0,0.96646334]
[1752544443787,0.97486262,688.64,688.0,0.96646334]
[1752544444298,0.97486262,688.64,688.01,0.96646334]
[1752544444489,0.97486262,688.64,688.0,0.96646334]
[1752544445193,0.97486262,688.63,688.01,0.96646334]
[1752544445489,1.94865325,688.96,687.34,0.25267468]
[1752544445490,0.97486262,688.64,688.0,0.96646334]
[1752544446295,0.97486262,688.65,688.0,0.96646334]
[1752544446495,0.97486262,688.65,687.99,0.96646334]
[1752544447295,0.97486262,688.6,688.03,0.96646334]
[1752544448197,0.97486262,688.6,688.04,0.96646334]
[1752544448398,0.97486262,688.6,688.03,0.96646334]
[1752544448696,0.97486262,688.61,688.03,0.96646334]
[1752544449096,0.97486262,688.61,688.04,0.96646334]
[1752544449394,0.97486262,688.62,688.04,0.96646334]
[1752544450694,0.97486262,688.62,688.03,0.96646334]
[1752544451197,0.97486262,688.64,688.05,0.96646334]
[1752544451398,0.97486262,688.64,688.04,0.96646334]
[1752544451595,0.97486262,688.65,688.04,0.96646334]
[1752544452296,0.97486262,688.72,688.11,0.96646334]
[1752544452899,0.97486262,688.72,688.1,0.96646334]
[1752544453399,0.97486262,688.71,688.1,0.96646334]
[1752544453996,0.97486262,688.7,688.09,0.96646334]
[1752544454300,0.97486262,688.69,688.08,0.96646334]
[1752544455696,0.97486262,688.66,688.05,0.96646334]
[1752544456100,0.97486262,688.64,688.06,0.96646334]
[1752544458204,0.97486262,688.63,688.06,0.96646334]
[1752544458403,0.97486262,688.64,688.06,0.96646334]
[1752544459005,0.97486262,688.62,688.07,0.96646334]
[1752544459701,0.97486262,688.63,688.06,0.96646334]
[1752544461609,0.97486262,688.63,687.92,1.2903668]
[1752544461610,0.97486262,688.63,688.03,0.96646334]
[1752544461905,0.97486262,688.61,688.03,0.96646334]
[1752544462401,0.97486262,688.6,688.04,0.96646334]
[1752544462607,0.97486262,688.61,688.03,0.96646334]
[1752544462804,0.97486262,688.59,688.02,0.96646334]
[1752544464205,0.97486262,688.58,688.02,0.96646334]
[1752544464406,0.97486262,688.59,688.02,0.96646334]
[1752544466006,0.97486262,688.58,688.02,0.96646334]
[1752544466206,0.97486262,688.62,687.99,0.96646334]
[1752544467507,0.97486262,688.63,687.99,0.96646334]
[1752544468612,0.97486262,688.62,687.99,0.96646334]
[1752544473311,0.97486262,688.63,687.98,0.96646334]
[1752544475514,0.97486262,688.64,687.98,0.96646334]
[1752544476013,0.97486262,688.61,688.0,0.96646334]
[1752544477710,0.97486262,688.62,688.0,0.96646334]
[1752544477917,0.97486262,688.63,687.99,0.96646334]
[1752544478416,0.97486262,688.6,688.01,0.96646334]
[1752544478616,0.97486262,688.61,688.02,0.96646334]
[1752544478813,0.97486262,688.6,688.01,0.96646334]
[1752544479516,0.97486262,688.59,688.01,0.96646334]
[1752544479716,0.97486262,688.63,688.05,0.96646334]
[1752544479913,0.97486262,688.64,688.05,0.96646334]
[1752544480113,0.97486262,688.65,688.06,0.96646334]
[1752544481113,0.97486262,688.65,687.81,1.9355502]
[1752544481114,0.97486262,688.7,688.11,0.96646334]
[1752544482217,0.97486262,688.69,688.11,0.96646334]
[1752544482513,0.97486262,688.68,688.11,0.96646334]
[1752544482916,0.97486262,688.7,688.1,0.96646334]
[1752544483112,0.97486262,688.72,688.09,0.96646334]
[1752544484719,0.97486262,688.7,688.08,0.96646334]
[1752544484915,0.97486262,688.7,687.93,1.2903668]
[1752544484916,0.97486262,688.69,688.07,0.96646334]
[1752544485319,0.97486262,688.68,688.07,0.96646334]
[1752544485615,0.97486262,688.68,688.06,0.96646334]
[1752544486219,0.97486262,688.66,688.06,0.96646334]
[1752544486415,0.97486262,688.68,688.05,0.96646334]
[1752544486919,0.97486262,688.55,687.93,0.96646334]
[1752544487115,0.97486262,688.56,687.92,0.96646334]
[1752544487321,0.97486262,688.57,687.92,0.96646334]
[1752544487617,0.97486262,688.43,687.82,0.96646334]
[1752544487821,0.97486262,688.42,687.8,0.96646334]
[1752544488121,0.97486262,688.39,687.72,0.96646334]
[1752544488321,0.97486262,688.4,687.71,0.96646334]
[1752544488520,0.97486262,688.37,687.68,0.96646334]
[1752544488820,0.97486262,688.37,687.34,0.25267468]
[1752544488821,0.97486262,688.36,687.66,0.96646334]
[1752544489020,0.97486262,688.36,687.65,0.96646334]
[1752544489221,0.97486262,688.28,687.64,0.96646334]
[1752544489417,0.97486262,688.28,687.6,0.96646334]
[1752544489916,0.97486262,688.28,687.46,1.2903668]
[1752544489917,0.97486262,688.24,687.62,0.96646334]
[1752544490116,0.97486262,688.22,687.58,0.96646334]
[1752544490321,0.97486262,688.24,687.56,0.96646334]
[1752544490523,0.97486262,688.25,687.56,0.96646334]
[1752544490921,0.97486262,688.24,687.55,0.96646334]
[1752544491721,0.97486262,688.24,687.51,0.96646334]
[1752544491918,0.97486262,688.23,687.51,0.96646334]
[1752544492321,0.97486262,688.25,687.49,0.96646334]
[1752544492526,0.97486262,688.25,687.48,0.96646334]
[1752544493026,0.97486262,688.26,687.47,0.96646334]
[1752544493431,0.97486262,688.23,687.44,0.96646334]
[1752544493628,0.97486262,688.25,687.42,0.96646334]
[1752544494032,0.97486262,688.22,687.39,0.96646334]
[1752544494531,0.97486262,688.23,687.38,0.96646334]
[1752544494733,0.97486262,688.19,687.34,0.25267468]
[1752544495227,1.29910217,688.32,687.34,0.25267468]
[1752544495228,0.97486262,688.2,687.34,0.25267468]
[1752544495428,0.97486262,688.22,687.34,0.25267468]
[1752544495629,0.97486262,688.2,687.34,0.25267468]
[1752544496432,0.97486262,688.22,687.34,0.25267468]
[1752544497330,0.97486262,688.27,687.34,0.25267468]
[1752544497634,0.97486262,688.32,687.34,0.25267468]
[1752544497827,3.47571398,689.06,687.34,0.25267468]
[1752544497828,0.97486262,688.34,687.34,0.25267468]
[1752544498031,2.05199268,688.33,687.34,0.25267468]
[1752544498229,0.97486262,688.33,687.34,0.25267468]
[1752544498431,0.97486262,688.34,687.34,0.25267468]
[1752544498730,1.07664175,688.33,687.34,0.25267468]
[1752544498934,0.97486262,688.34,687.34,0.25267468]
[1752544499230,0.97486262,688.31,687.34,0.25267468]
[1752544499639,0.97486262,688.32,687.34,0.25267468]
[1752544500635,0.97486262,688.31,687.34,0.25267468]
[1752544500832,0.97486262,688.3,687.34,0.25267468]
[1752544501332,0.97486262,688.29,687.34,0.25267468]
[1752544501531,0.25267468,689.06,687.34,0.25267468]
[1752544501532,0.97486262,688.26,687.34,0.25267468]
[1752544501937,0.97486262,688.27,687.34,0.25267468]
[1752544502137,0.97486262,688.21,687.34,0.25267468]
[1752544502334,0.97486262,688.23,687.34,0.25267468]
[1752544502633,0.97486262,688.26,687.34,0.25267468]
[1752544503337,0.97486262,688.27,687.34,0.25267468]
[1752544504040,0.97486262,688.23,687.34,0.25267468]
[1752544504241,0.97486262,688.24,687.34,0.25267468]
[1752544504437,0.97486262,688.25,687.34,0.25267468]
[1752544504640,0.97486262,688.24,687.34,0.25267468]
[1752544505039,0.97486262,688.23,687.34,0.25267468]
[1752544505342,0.97486262,688.21,687.34,0.25267468]
[1752544505542,0.97486262,688.2,687.34,0.25267468]
[1752544505739,0.97486262,688.09,687.34,0.25267468]
[1752544505945,0.97486262,688.1,686.96,0.96646334]
[1752544506144,0.97486262,688.11,687.29,0.25299891]
[1752544506339,0.97486262,688.13,687.29,0.25299891]
[1752544507452,0.97486262,688.14,687.29,0.25299891]
[1752544507647,0.97486262,688.15,687.29,0.25299891]
[1752544508345,0.97486262,688.17,687.29,0.25299891]
[1752544509150,0.97486262,688.17,686.89,0.96646334]
[1752544509349,0.97486262,688.16,686.86,0.96646334]
[1752544509550,0.97486262,688.12,687.21,0.25302926]
[1752544509752,0.97486262,688.11,687.21,0.25302926]
[1752544510449,0.97486262,688.12,687.21,0.25302926]
[1752544511548,0.97486262,688.14,687.21,0.25302926]
[1752544511751,0.97486262,688.13,687.21,0.25302926]
[1752544512252,0.97486262,688.15,687.21,0.25302926]
[1752544512649,0.97486262,688.13,687.21,0.25302926]
[1752544513348,0.97486262,688.14,687.21,0.25302926]
[1752544513554,1.07254255,688.13,687.21,0.25302926]
[1752544513751,1.07254255,688.12,687.21,0.25302926]
[1752544513955,1.07254255,688.11,687.21,0.25302926]
[1752544514254,0.97486262,688.16,687.21,0.25302926]
[1752544514551,1.07216492,688.15,687.21,0.25302926]
[1752544514856,1.07216492,688.14,687.21,0.25302926]
[1752544515057,0.97486262,688.26,687.21,0.25302926]
[1752544515356,1.0721318,688.25,687.21,0.25302926]
[1752544515652,1.0721318,688.24,687.21,0.25302926]
[1752544515852,1.0716684,688.23,687.21,0.25302926]
[1752544516056,1.0716684,688.22,687.21,0.25302926]
[1752544516256,1.0716684,688.21,687.21,0.25302926]
[1752544516452,0.97486262,688.27,687.21,0.25302926]
[1752544516654,1.07140189,688.26,687.21,0.25302926]
[1752544516853,1.07140189,688.25,687.21,0.25302926]
[1752544517054,1.07140189,688.24,687.21,0.25302926]
[1752544517252,1.07140189,688.23,687.21,0.25302926]
[1752544517451,1.07140189,688.22,687.21,0.25302926]
[1752544517657,1.07140189,688.21,687.21,0.25302926]
[1752544517855,0.97486262,688.26,687.21,0.25302926]
[1752544518059,1.07118333,688.25,687.21,0.25302926]
[1752544518260,1.07118333,688.24,687.21,0.25302926]
[1752544518457,0.97486262,688.29,687.21,0.25302926]
[1752544518660,1.07098142,688.28,687.21,0.25302926]
[1752544518960,1.07098142,688.27,687.21,0.25302926]
[1752544519258,1.07098142,688.26,687.21,0.25302926]
[1752544519455,1.07098142,688.25,687.21,0.25302926]
[1752544519655,1.07098142,688.24,687.21,0.25302926]
[1752544519858,0.97486262,688.29,687.21,0.25302926]
[1752544520056,1.07088103,688.28,687.21,0.25302926]
[1752544520260,1.07088103,688.27,687.21,0.25302926]
[1752544520461,1.07088103,688.26,687.21,0.25302926]
[1752544520761,1.07082556,688.25,687.21,0.25302926]
[1752544520957,0.97486262,688.32,687.21,0.25302926]
[1752544521159,1.07082556,688.31,687.21,0.25302926]
[1752544521458,1.07082556,688.3,687.21,0.25302926]
[1752544521660,1.07077651,688.29,687.21,0.25302926]
[1752544521858,1.07077651,688.28,687.21,0.25302926]
[1752544522057,1.07077651,688.27,687.21,0.25302926]
[1752544522258,0.97486262,688.3,687.21,0.25302926]
[1752544522259,1.07077651,688.26,687.21,0.25302926]
[1752544522461,1.07077651,688.25,687.21,0.25302926]
[1752544522660,1.07077651,688.24,687.21,0.25302926]
[1752544522856,1.07077651,688.23,687.21,0.25302926]
[1752544523059,1.07077651,688.22,687.21,0.25302926]
[1752544523257,1.07073079,688.21,686.78,0.96646334]
[1752544523455,1.07076599,688.2,687.13,0.2530495]
[1752544523756,1.07076599,688.19,687.13,0.2530495]
[1752544523956,1.07076599,688.18,687.13,0.2530495]
[1752544524260,1.07076599,688.17,687.13,0.2530495]
[1752544524658,1.07071078,688.16,687.13,0.2530495]
[1752544524860,1.07071078,688.15,687.13,0.2530495]
[1752544525059,1.07071078,688.14,687.13,0.2530495]
[1752544525359,1.07071162,688.13,687.13,0.2530495]
[1752544525563,0.97486262,688.09,687.13,0.2530495]
[1752544525758,1.07071162,688.08,687.13,0.2530495]
[1752544525963,0.97486262,688.06,687.13,0.2530495]
[1752544526262,0.97486262,688.03,687.13,0.2530495]
[1752544526560,1.07071162,688.02,687.13,0.2530495]
[1752544526759,1.07071162,688.01,687.13,0.2530495]
[1752544526961,0.97486262,688.21,687.13,0.2530495]
[1752544527164,1.07046944,688.2,687.13,0.2530495]
[1752544527358,1.07046944,688.19,687.13,0.2530495]
[1752544527562,2.04533206,688.18,687.13,0.2530495]
[1752544527760,0.97486262,688.13,687.13,0.2530495]
[1752544527964,1.94865325,688.42,687.13,0.2530495]
[1752544527965,1.07046944,688.12,687.13,0.2530495]
[1752544528261,1.07046944,688.11,687.13,0.2530495]
[1752544528561,3.2230393,689.04,687.13,0.2530495]
[1752544528562,1.07046944,688.1,687.13,0.2530495]
[1752544528762,1.07046944,688.09,687.13,0.2530495]
[1752544529064,1.07046944,688.08,687.13,0.2530495]
[1752544529261,1.07046944,688.07,687.13,0.2530495]
[1752544529462,1.07046944,688.06,687.13,0.2530495]
[1752544529664,1.07046944,688.05,687.13,0.2530495]
[1752544529862,1.07046944,688.04,687.13,0.2530495]
[1752544530165,1.069952,688.03,687.13,0.2530495]
[1752544530366,0.97486262,688.13,686.61,0.96646334]
[1752544530660,1.06982654,688.12,687.02,0.25310287]
[1752544530860,1.06982654,688.11,687.02,0.25310287]
[1752544531064,1.06982654,688.1,687.02,0.25310287]
[1752544531264,1.06982654,688.09,687.02,0.25310287]
[1752544531560,1.06982654,688.08,687.02,0.25310287]
[1752544531866,0.97486262,688.12,687.02,0.25310287]
[1752544532065,1.06966584,688.11,687.02,0.25310287]
[1752544532261,0.97486262,688.13,687.02,0.25310287]
[1752544532460,1.06967779,688.12,687.02,0.25310287]
[1752544532660,1.06967779,688.11,687.02,0.25310287]
[1752544532860,1.06967779,688.1,687.02,0.25310287]
[1752544533165,0.97486262,687.94,687.02,0.25310287]
[1752544533867,0.97486262,687.95,687.02,0.25310287]
[1752544534563,0.97486262,687.96,687.02,0.25310287]
[1752544535062,0.97486262,687.97,687.02,0.25310287]
[1752544536366,0.97486262,687.96,687.02,0.25310287]
[1752544537364,0.97486262,687.95,687.02,0.25310287]
[1752544537564,0.97486262,687.96,687.02,0.25310287]
[1752544538066,0.97486262,687.99,687.02,0.25310287]
[1752544538468,0.97486262,688.02,687.02,0.25310287]
[1752544538765,0.97486262,688.03,687.02,0.25310287]
[1752544539767,1.07267405,688.02,687.02,0.25310287]
[1752544539965,1.07267405,688.01,687.02,0.25310287]
[1752544540265,0.97486262,688.12,687.02,0.25310287]
[1752544540463,1.07267341,688.11,687.02,0.25310287]
[1752544540667,1.07267341,688.1,687.02,0.25310287]
[1752544540863,1.07267341,688.09,687.02,0.25310287]
[1752544541163,1.07267341,688.08,687.02,0.25310287]
[1752544541366,1.07267341,688.07,687.02,0.25310287]
[1752544541671,1.29910217,688.32,687.02,0.25310287]
[1752544541672,1.07267341,688.06,687.02,0.25310287]
[1752544541870,1.07267341,688.05,687.02,0.25310287]
[1752544542165,0.97486262,688.19,687.02,0.25310287]
[1752544542370,0.97486262,688.16,687.02,0.25310287]
[1752544542566,1.07365084,688.15,687.02,0.25310287]
[1752544542764,1.07365084,688.14,687.02,0.25310287]
[1752544543066,1.07417194,688.13,687.02,0.25310287]
[1752544543266,1.07417194,688.12,687.02,0.25310287]
[1752544543466,1.07417194,688.11,687.02,0.25310287]
[1752544543670,1.07417194,688.1,687.02,0.25310287]
[1752544543870,1.07417194,688.09,687.02,0.25310287]
[1752544544170,1.07417194,688.08,687.02,0.25310287]
[1752544544467,1.07417194,688.07,687.02,0.25310287]
[1752544544669,1.07417194,688.06,687.02,0.25310287]
[1752544544870,1.07417194,688.05,687.02,0.25310287]
[1752544545068,1.07417194,688.04,687.02,0.25310287]
[1752544545267,1.07417194,688.03,687.02,0.25310287]
[1752544545573,1.07417194,688.02,687.02,0.25310287]
[1752544545772,1.07417194,688.01,687.02,0.25310287]
[1752544545972,1.07417194,688.0,687.02,0.25310287]
[1752544546168,1.07417194,687.99,687.02,0.25310287]
[1752544546371,0.97486262,688.1,687.02,0.25310287]
[1752544546568,0.97486262,688.06,687.02,0.25310287]
[1752544547372,0.97486262,688.03,687.02,0.25310287]
[1752544548368,0.97486262,688.01,687.02,0.25310287]
[1752544548675,0.97486262,688.02,687.02,0.25310287]
[1752544549275,0.97486262,688.01,687.02,0.25310287]
[1752544549474,0.97486262,688.0,687.02,0.25310287]
[1752544550273,0.97486262,688.0,687.02,1.21956621]
[1752544550480,0.97486262,687.99,687.03,0.96646334]
[1752544551377,0.97486262,687.97,687.03,0.96646334]
[1752544551676,0.97486262,687.97,687.04,0.96646334]
[1752544552376,0.97486262,687.96,687.05,0.96646334]
[1752544552574,0.97486262,687.96,687.06,0.96646334]
[1752544553177,0.97486262,687.95,687.06,0.96646334]
[1752544553577,0.97486262,687.94,687.07,0.96646334]
[1752544554176,0.97486262,687.92,687.08,0.96646334]
[1752544554474,0.97486262,687.88,687.08,0.96646334]
[1752544554676,0.97486262,687.86,687.05,0.96646334]
[1752544554878,0.97486262,687.81,687.03,0.96646334]
[1752544555079,0.97486262,687.74,687.02,0.25310287]
[1752544555474,0.97486262,687.75,687.02,0.25310287]
[1752544555775,0.97486262,687.74,687.02,0.25310287]
[1752544555975,0.97486262,687.72,687.02,0.25310287]
[1752544556576,0.97486262,687.71,687.02,0.25310287]
[1752544557885,0.97486262,687.74,687.02,0.25310287]
[1752544558085,3.2230393,688.56,687.02,0.25310287]
[1752544558086,0.97486262,687.86,687.02,0.25310287]
[1752544558381,0.97486262,687.88,687.02,0.25310287]
[1752544559480,0.97486262,687.82,687.02,0.25310287]
[1752544560080,0.97486262,687.71,687.02,0.25310287]
[1752544560285,0.97486262,687.66,687.02,0.25310287]
[1752544560484,0.97486262,687.67,687.02,0.25310287]
[1752544560781,0.97486262,687.67,686.8,0.96646334]
[1752544561081,0.97486262,687.67,686.87,0.25314154]
[1752544561282,0.97486262,687.58,686.87,0.25314154]
[1752544561478,0.97486262,687.53,686.87,0.25314154]
[1752544561681,0.97486262,687.49,686.87,0.25314154]
[1752544561884,0.97486262,687.48,686.87,0.25314154]
[1752544562084,0.97486262,687.47,686.87,0.25314154]
[1752544562285,0.97486262,687.45,686.87,0.25314154]
[1752544562486,0.97486262,687.46,686.87,0.25314154]
[1752544563984,0.97486262,687.48,686.87,0.25314154]
[1752544564386,0.97486262,687.49,686.87,0.25314154]
[1752544565990,0.97486262,687.5,686.87,0.25314154]
[1752544566786,0.97486262,687.48,686.87,0.25314154]
[1752544567392,0.97486262,687.49,686.87,0.25314154]